[Event "45th FIDE Olympiad 2024"]
[Site "Budapest"]
[Date "2024.09.11"]
[Round "1.201"]
[White "De Mey, Juan Pablo"]
[Black "Quizon, Daniel"]
[Result "0-1"]
[ECO "B37"]
[WhiteElo "1992"]
[BlackElo "2490"]
[Annotator "TA"]
[PlyCount "70"]
[EventDate "2024.09.05"]
[EventType "team-tourn"]
[EventCountry "HUN"]
[SourceTitle "playchess.com"]
[Source "ChessBase"]
[SourceQuality "1"]
[WhiteTeam "Aruba"]
[BlackTeam "Philippines"]
[WhiteTeamCountry "ARN"]
[BlackTeamCountry "PHI"]
[TimeControl "40/5400+30:1800+30"]

{[%evp 17,70,0,42,11,18,7,34,29,35,42,44,0,49,47,72,-22,0,0,0,-13,-13,-10,35,29,18,0,0,0,0,0,33,14,18,17,14,13,4,8,16,6,31,0,0,0,0,0,0,0,0,0,0,-29990,-29991,-29991,-47]} 1. e4 c5 2. Nf3 g6 3. d4 cxd4 4. Nxd4 Bg7 5. c4 Nc6 6. Be3 d6 7. Nc3 Nf6 8. Be2 O-O 9. Nc2 Be6 10. Rc1 Rc8 11. O-O a6 12. b3 {White is slightly better.} Qa5 13. Bd2 Qd8 14. Be3 Bd7 (14... Qa5 $11 15. Bd2 Qd8) 15. h3 $14 b5 16. c5 ({Better is} 16. cxb5 $16 axb5 17. Bxb5) 16... Be6 (16... dxc5 $5 17. Bxc5 Be6 $11) 17. cxd6 exd6 18. Nd4 Nxd4 19. Bxd4 Qa5 {[%cal Of6e4]} 20. Qd3 (20. Bf3 $5) 20... Rfe8 21. f4 d5 22. e5 Ne4 23. Bg4 Qa3 24. Bxe6 fxe6 25. Rc2 Nxc3 26. Rxc3 Bf8 27. Rf2 Qe7 28. Kh2 Bh6 29. Kg3 Qf7 30. Rxc8 Rxc8 31. a4 bxa4 32. Qxa6 Rf8 33. f5 (33. bxa4 Bxf4+ 34. Kf3 Be3+ (34... Bxe5+ 35. Ke2 $11) 35. Kxe3 Qxf2+ 36. Kd3 Qf1+ (36... Qxg2 $2 37. Qxe6+ Kh8 38. Qb6 $19) 37. Ke3 Qxa6 38. h4 Qxa4 39. Kd3 Qb3+ (39... Qd1+ 40. Ke3 Qe1+ 41. Kd3 Rc8 42. g4 Qe4+ 43. Kd2 Rc2+ 44. Kd1 Qe2#) 40. Ke2 Qc2+ 41. Ke3 Rf2 (41... Qxg2 42. Kd3 Rc8 43. Ke3 Qe4+ 44. Kf2 Rc2+ 45. Kg3 Rg2+ 46. Kh3 Qg4#) (41... Qe4+ 42. Kd2 Qxd4+ 43. Kc2 Rf2+ 44. Kb3 Rb2+ 45. Ka3 Qb4#) (41... Qxg2 42. Kd3 Rc8 43. Ke3 Qe4+ 44. Kf2 Rc2+ 45. Kg3 Rg2+ 46. Kh3 Qg4#) (41... Qe4+ 42. Kd2 Qxd4+ 43. Kc2 Rf2+ 44. Kb3 Rb2+ 45. Ka3 Qb4#)) 33... axb3 34. fxe6 {[%mdl 8192] [#]} (34. Bc5 $11 Rb8 35. fxe6 Qxf2+ 36. Kxf2 (36. Bxf2 b2 $11)) 34... Bf4+ 35. Kf3 Qe7 $2 {Weighted Error Value: White=0.34/Black=0.14 (very precise) .  Loses game:     	White=1     	---        Mistake:       	White=1     	Black=1      Inaccurate:     	White=2     	Black=3      OK:         	White=10    	Black=8      Best:        	---       	Black=1} (35... Bxe5+ 36. exf7+ Rxf7+ 37. Ke2 Bxd4 38. Qa8+ Kg7 39. Rxf7+ Kxf7 40. Qxd5+ Kf6 41. Qxd4+) (35... Qf5 {mates} 36. Qf1 Qe4+ (36... Bxe5+ $2 37. Ke2 $19) 37. Kg4 h5+ (37... Bxe5+ {gets mated.} 38. Kg5 Rxf2 39. Qxf2 h6+ 40. Kxh6 Bf4+ 41. Qxf4 Qxf4+ 42. Kxg6 Qxd4 43. e7 Qe4+ 44. Kh6 Qxe7 45. Kh5 b2 46. Kg4 b1=Q 47. Kf3 Qf1+ 48. Kg4 Qxg2+ 49. Kh5 Qh7#) (37... Be3+ 38. Kg3 Bxf2+ 39. Qxf2 Rxf2 40. Bxf2 b2 41. Kh2 b1=Q 42. e7 Kf7 43. e8=R Qf1 44. Re7+ Kxe7 45. Bc5+ Ke8 46. g4 Qxe5#) 38. Kh4 Kg7 (38... Qxd4 {is a self mate.} 39. g4 Qxe5 40. Rxf4 Rxf4 41. Qd3 Qf6+ 42. Kg3 h4+ 43. Kh2 Rf2+ 44. Kg1 Rc2 45. Qxc2 bxc2 46. Kg2 c1=Q 47. e7 Qff1+ 48. Kh2 Qh1#) 39. Rxf4 Rxf4+ 40. Kg3 Rxf1 41. Be3 Qxe3+ (41... h4+ $2 42. Kh2 Qxe3 43. g4 Qg3#) 42. Kh4 Kh6 43. g4 g5#) 0-1

[Event "45th FIDE Olympiad 2024"]
[Site "Budapest"]
[Date "2024.09.11"]
[Round "1.202"]
[White "Bersamina, Paulo"]
[Black "Stetsenko, Ilya"]
[Result "1-0"]
[ECO "B11"]
[WhiteElo "2425"]
[BlackElo "1903"]
[Annotator "TA"]
[PlyCount "99"]
[EventDate "2024.09.05"]
[EventType "team-tourn"]
[EventCountry "HUN"]
[SourceTitle "playchess.com"]
[Source "ChessBase"]
[SourceQuality "1"]
[WhiteTeam "Philippines"]
[BlackTeam "Aruba"]
[WhiteTeamCountry "PHI"]
[BlackTeamCountry "ARN"]
[TimeControl "40/5400+30:1800+30"]

{[%evp 10,99,22,22,35,17,0,0,34,35,36,29,25,20,28,20,16,17,46,43,50,59,61,50,52,56,62,55,53,30,25,20,22,6,38,7,82,76,109,50,60,32,83,72,93,80,168,162,189,83,83,85,89,90,128,111,112,96,100,100,111,0,100,70,114,72,65,60,67,77,72,70,86,48,87,48,48,48,138,133,149,156,153,137,361,391,696,722,757,733,707,706]} 1. e4 c6 2. Nc3 d5 3. Nf3 dxe4 4. Nxe4 Nf6 5. Qe2 Nxe4 6. Qxe4 Qd5 {Inhibits Bc4.} 7. Qh4 Qe6+ 8. Be2 Qg4 {The position is equal.} 9. Qg3 Qxg3 10. hxg3 g6 11. Bc4 Nd7 12. Ng5 {[%csl LRf7,LRh7]} Ne5 13. Bb3 {[%cal Od2d4] [#] d4! is the strong threat.} f6 14. Ne6 ({Don't play} 14. Nxh7 Bg7 15. d4 Nf7 $19) (14. Rxh7 Rxh7 15. Nxh7 Bg7 $15) 14... Bxe6 15. Bxe6 Rd8 16. d3 Rd6 17. Bb3 h5 18. Be3 b6 19. f3 Bh6 20. Bf2 c5 21. Ke2 Nc6 22. c3 e5 (22... Kf8 $11 {remains equal.}) 23. g4 $16 Bg5 24. Ba4 (24. Rh3 $16) 24... Kf7 {[%cal Be8f7,Bf7e7,Be7e6,Be6f5,Bf5g6,Bg6g7][%mdl 32]} 25. Rh3 Nd8 (25... Ne7 $14) 26. Bb3+ Ne6 27. Rah1 Rhd8 (27... Rc8 $16) 28. gxh5 $18 Ke7 {[#]} 29. Bxe6 (29. g3 $1 $18) 29... Kxe6 $16 30. Rd1 ({Of course not} 30. f4 $6 Bxf4 31. h6 (31. hxg6 Kf5 $11) 31... Rh8 $11) (30. hxg6 {is interesting.} Rxd3 31. Rh8 f5 32. Be1) 30... gxh5 31. Rxh5 R8d7 32. a4 Kf5 33. b3 Kg6 34. Rh8 Kg7 35. Rh5 Kg6 $1 36. g4 a6 {[%cal Ba7a6,Ba6a5][%mdl 32]} 37. Rh8 a5 38. Rg8+ Kf7 39. Rb8 Kg6 40. Rh8 Kg7 41. Rh3 Kg6 42. Rh5 Rd8 43. Be3 Bxe3 ({Black should play} 43... Bf4 $1 $14) 44. Kxe3 $14 {[%mdl 4096] Endgame. KRR-KRR} R6d7 45. Ke4 Rd6 46. Rh4 Kg5 $2 {This costs Black the game.} (46... R6d7 $16 {might work better.} 47. Rh2 Rd6) 47. Rdh1 $18 {And now Rh5+ would win.} Kg6 (47... R8d7 48. Rh8 Kg6 49. R1h6+ Kg5) 48. Rh6+ {White is clearly winning.} Kf7 49. Rh7+ Ke6 50. R1h6 {Weighted Error Value: White=0.17 (very precise) /Black=0.31.  Loses game:     	---       	Black=1      Mistake:       	White=2     	Black=5      Inaccurate:     	White=5     	Black=7      OK:         	White=15    	Black=17     Best:        	White=4     	Black=2      Strong:       	---       	Black=1} 1-0

[Event "45th FIDE Olympiad 2024"]
[Site "Budapest"]
[Date "2024.09.11"]
[Round "1.203"]
[White "Croes, Octavio"]
[Black "Gomez, John Paul"]
[Result "0-1"]
[ECO "A73"]
[WhiteElo "1850"]
[BlackElo "2408"]
[Annotator "ChessBase"]
[PlyCount "56"]
[EventDate "2024.09.05"]
[EventType "team-tourn"]
[EventCountry "HUN"]
[SourceTitle "playchess.com"]
[Source "ChessBase"]
[SourceQuality "1"]
[WhiteTeam "Aruba"]
[BlackTeam "Philippines"]
[WhiteTeamCountry "ARN"]
[BlackTeamCountry "PHI"]
[TimeControl "40/5400+30:1800+30"]

1. d4 c5 2. d5 Nf6 3. c4 e6 4. Nc3 exd5 5. cxd5 d6 6. e4 g6 7. Be2 Bg7 8. Nf3 O-O 9. O-O Bg4 10. Nd2 Bxe2 11. Qxe2 Nbd7 12. Nc4 Nb6 13. f3 Nxc4 14. Qxc4 a6 15. Be3 b5 16. Qd3 Nd7 17. f4 Re8 18. Rae1 Nf6 19. Bc1 c4 20. Qf3 b4 21. e5 bxc3 22. exf6 Qxf6 23. bxc3 Qxc3 24. Rxe8+ Rxe8 25. h3 Qxf3 26. gxf3 Bd4+ 27. Kh1 c3 28. Ba3 c2 0-1

[Event "45th FIDE Olympiad 2024"]
[Site "Budapest"]
[Date "2024.09.11"]
[Round "1.204"]
[White "Garcia, Jan Emmanuel"]
[Black "Pesqueira, Jose"]
[Result "1-0"]
[ECO "B36"]
[WhiteElo "2380"]
[BlackElo "1880"]
[Annotator "ChessBase"]
[PlyCount "68"]
[EventDate "2024.09.05"]
[EventType "team-tourn"]
[EventCountry "HUN"]
[SourceTitle "playchess.com"]
[Source "ChessBase"]
[SourceQuality "1"]
[WhiteTeam "Philippines"]
[BlackTeam "Aruba"]
[WhiteTeamCountry "PHI"]
[BlackTeamCountry "ARN"]
[TimeControl "40/5400+30:1800+30"]

1. Nf3 c5 2. c4 g6 3. d4 cxd4 4. Nxd4 Nc6 5. e4 Nf6 6. Nc3 d6 7. Be2 Nxd4 8. Qxd4 Bg7 9. Be3 O-O 10. Qd2 Be6 11. Rc1 Qa5 12. f3 Rfc8 13. b3 a6 14. Nd5 Qxd2+ 15. Kxd2 Nxd5 16. exd5 Bd7 17. a4 e6 18. dxe6 Bxe6 19. Bf4 b5 20. cxb5 axb5 21. Rxc8+ Rxc8 22. Rc1 Rxc1 23. Kxc1 bxa4 24. bxa4 d5 25. a5 Bc3 26. a6 Bd7 27. Kc2 Bd4 28. Kb3 Bc5 29. Be5 Bc6 30. Kc3 Kf8 31. Bd4 Bd6 32. g3 Ke7 33. a7 Kd7 34. Bb5 Bc7 1-0

[Event "45th FIDE Olympiad 2024"]
[Site "Budapest"]
[Date "2024.09.11"]
[Round "1.205"]
[White "Galaviz Medina, Sion Radamantys"]
[Black "D`amico, Nicola"]
[Result "1-0"]
[ECO "D35"]
[WhiteElo "2488"]
[BlackElo "1801"]
[Annotator "TA"]
[PlyCount "49"]
[EventDate "2024.09.05"]
[EventType "team-tourn"]
[EventCountry "HUN"]
[SourceTitle "playchess.com"]
[Source "ChessBase"]
[SourceQuality "1"]
[WhiteTeam "Mexico"]
[BlackTeam "San Marino"]
[WhiteTeamCountry "MEX"]
[BlackTeamCountry "SMR"]
[TimeControl "40/5400+30:1800+30"]

{[%evp 12,49,7,18,18,14,19,13,14,19,17,25,34,29,29,25,45,38,170,170,166,170,160,165,170,175,183,167,164,180,218,227,212,218,215,220,683,699,29994,29995]} 1. d4 d5 2. c4 e6 3. Nc3 Nf6 4. cxd5 exd5 5. Bg5 c6 6. e3 h6 7. Bh4 Bd6 8. Bd3 O-O 9. Nge2 Re8 {The position is equal.} 10. h3 Nbd7 11. O-O Qc7 12. Qc2 a5 13. Rae1 b5 14. Bg3 {[%cal Oc3b5]} b4 {[#] Black cannot hold the game after this.} ({Black should play} 14... Qb8 $14) 15. Nb5 $1 $18 {[%mdl 512]} cxb5 16. Qxc7 Bxc7 17. Bxc7 Ne4 {[%cal Bf6e4,Be4d2,Bd2c4][%mdl 32]} 18. Rc1 Nd2 {[#]} 19. Rfe1 Nc4 20. b3 Na3 21. Nf4 Bb7 22. Bf5 Nf8 23. Be5 {This pair of bishops is nice.} Ne6 $2 (23... Nc4 24. bxc4 dxc4) 24. Bxe6 fxe6 25. Rc7 {[%csl LRb7,LRg7] Weighted Error Value: White=0.01 (flawless) /Black=0.84.  Mistake:       	---       	Black=2      Inaccurate:     	---       	Black=1      OK:         	White=10    	Black=7      Best:        	White=1     	---        Brilliant:      	White=1     	---} 1-0

[Event "45th FIDE Olympiad 2024"]
[Site "Budapest"]
[Date "2024.09.11"]
[Round "1.206"]
[White "Righi, Ezio"]
[Black "Cori Quispe, Kevin Joel"]
[Result "0-1"]
[ECO "B72"]
[WhiteElo "1909"]
[BlackElo "2461"]
[Annotator "TA"]
[PlyCount "82"]
[EventDate "2024.09.05"]
[EventType "team-tourn"]
[EventCountry "HUN"]
[SourceTitle "playchess.com"]
[Source "ChessBase"]
[SourceQuality "1"]
[WhiteTeam "San Marino"]
[BlackTeam "Mexico"]
[WhiteTeamCountry "SMR"]
[BlackTeamCountry "MEX"]
[TimeControl "40/5400+30:1800+30"]

{[%evp 18,81,29,9,32,0,35,33,50,43,55,44,39,41,75,51,43,0,0,6,22,0,0,0,0,0,16,0,0,0,8,11,4,0,0,0,0,0,0,0,0,0,0,0,0,0,0,0,50,0,0,0,0,-723,-718,-722,-720,-715,-715,-712,-704,-1132,-1128,-29986,-29987,-29999]} 1. e4 c5 2. Nf3 Nc6 3. d4 cxd4 4. Nxd4 Nf6 5. Nc3 d6 6. Be2 g6 7. Be3 Bg7 8. Qd2 Ng4 9. Bxg4 Bxg4 10. f3 {Nxc6 would now be deadly.} Be6 11. h4 Ne5 12. b3 {Against Nc4} h5 {White is slightly better.} 13. Nd5 Rc8 14. Rd1 O-O 15. c4 a6 16. O-O Bd7 17. g3 b5 18. cxb5 axb5 19. Rc1 e6 20. Rxc8 Bxc8 21. Nb4 Bd7 22. Rc1 Qa8 23. Kg2 f5 24. exf5 Rxf5 {[%cal Re5f3]} 25. Nxf5 (25. Bf4 {is more complex.} Rf7 26. Rc7 Nxf3 27. Nxf3 e5 28. Qd5) 25... Qxf3+ 26. Kg1 Qxf5 27. Qf2 Qg4 28. Qf4 {Threatens to win with Qxg4.} Qe2 29. Qf2 Qg4 30. Qf4 Qh3 {White must now prevent ...Ng4.} 31. Rc2 Ng4 $36 {[%mdl 2048] aiming for ...Bh6. Black is pushing.} 32. Qf3 $1 Be5 (32... Ne5 $11 33. Qf4 Ng4) 33. Rg2 (33. Rc7 $1 $14 Qh2+ (33... Qxg3+ $2 34. Qxg3 Bxg3 35. Rxd7 $18) 34. Kf1 Nxe3+ (34... Qxg3 $2 35. Qxg3 Bxg3 36. Bg5 $18) 35. Qxe3 Qh1+ 36. Ke2 Qg2+ 37. Kd1) 33... Nxe3 34. Qxe3 {And now Qa7 would win.} Qg4 {[%cal Oe5d4] ...Bd4! is the strong threat.} (34... Bc8 {keeps more tension.} 35. Nd3 Bb7 36. Rh2 Bd4) 35. Qd2 {[%mdl 8192] [#]} (35. Qg5 $11 Qxg5 36. hxg5) 35... Bd4+ $1 $19 (35... Bxg3 $2 {perishes.} 36. Qd3 Be8 37. Nc2 $18 (37. Rxg3 Qxb4 38. Rxg6+ Bxg6 $11) (37. Rxg3 Qxb4 38. Rxg6+ Bxg6 $11)) 36. Kf1 Qf3+ 37. Rf2 Qh1+ 38. Ke2 Qe4+ 39. Kf1 {[#]} e5 $1 {( -> ...Bh3+)} (39... Bxf2 $2 40. Kxf2 Qf5+ 41. Kg2 $17) 40. Nc2 Bh3+ {This pair of bishops is nice.} 41. Kg1 Qg2# {Weighted Error Value: White=0.48/Black=0.07 (flawless) .  Loses game:     	White=1     	---        Mistake:       	White=1     	Black=1      Inaccurate:     	White=2     	Black=2      OK:         	White=9     	Black=10     Best:        	White=3     	Black=2      Strong:       	White=1     	Black=1} 0-1

[Event "45th FIDE Olympiad 2024"]
[Site "Budapest"]
[Date "2024.09.11"]
[Round "1.207"]
[White "Ibarra Chami, Luis Fernando"]
[Black "Volpinari, Danilo"]
[Result "1-0"]
[ECO "A14"]
[WhiteElo "2427"]
[BlackElo "1939"]
[Annotator "TA"]
[PlyCount "75"]
[EventDate "2024.09.05"]
[EventType "team-tourn"]
[EventCountry "HUN"]
[SourceTitle "playchess.com"]
[Source "ChessBase"]
[SourceQuality "1"]
[WhiteTeam "Mexico"]
[BlackTeam "San Marino"]
[WhiteTeamCountry "MEX"]
[BlackTeamCountry "SMR"]
[TimeControl "40/5400+30:1800+30"]

{[%evp 15,75,14,28,2,18,21,54,56,67,59,52,49,75,67,70,37,37,38,52,46,55,49,42,31,50,37,43,18,32,8,11,20,10,13,20,12,47,50,27,52,37,14,34,40,100,21,483,485,532,552,532,533,558,535,567,562,641,628,767,786,735,705]} 1. c4 e6 2. Nf3 d5 3. g3 Nf6 4. Bg2 Be7 5. O-O O-O 6. b3 c6 7. Bb2 Nbd7 8. Qc2 a5 {[%cal Oa5a4]} 9. d3 {[%cal Bd2d3,Bd3e4,Be4e5][%mdl 32]} Re8 10. e4 dxe4 11. dxe4 {White is slightly better.} Nc5 12. e5 Nfd7 13. Nbd2 Nf8 14. Bd4 Qc7 15. Qc3 b6 16. Qe3 Nfd7 17. Rab1 Bb7 18. h4 Na6 {[%cal Bc5a6,Ba6b4,Bb4c2][%mdl 32]} 19. Ne4 c5 20. Bc3 Nb4 21. a3 Nc2 {[%csl LRa3,LRe3]} 22. Qe2 (22. Qf4 $5) 22... Nd4 23. Nxd4 cxd4 24. Bxd4 Nxe5 25. Qh5 Ng6 26. Qb5 Bxe4 27. Bxe4 Rab8 {Black is weak on the light squares} 28. h5 Nf8 {[%cal Oe7c5]} 29. b4 $40 {[%cal Bb3b4,Bb4b5][%mdl 160] White mounts an attack.} Red8 ({Better is} 29... axb4 $14 30. axb4 Red8) 30. Rfd1 {White is much more active.} ({White should try} 30. Qe5 $16 Qxe5 31. Bxe5) 30... Rdc8 $2 {[%mdl 8192] [#] A mistake that costs the game.} (30... axb4 $11 {and Black has nothing to worry.} 31. axb4 Rbc8) 31. Be5 $18 {This pair of bishops is nice. White is clearly winning.} Qxc4 32. Qxc4 Rxc4 33. Bxb8 Rxe4 34. b5 Bxa3 35. Bd6 Bxd6 36. Rxd6 h6 37. Rxb6 Nd7 {Prevents Rb8+} 38. Rd6 {Weighted Error Value: White=0.15 (very precise) /Black=0.41.  Loses game:     	---       	Black=1      Mistake:       	White=1     	Black=1      Inaccurate:     	White=1     	Black=3      OK:         	White=6     	Black=10     Best:        	White=1     	---} 1-0

[Event "45th FIDE Olympiad 2024"]
[Site "Budapest"]
[Date "2024.09.11"]
[Round "1.208"]
[White "Grassi, Enrico"]
[Black "Palma Villanueva, Miguel Tadeo"]
[Result "0-1"]
[ECO "B44"]
[WhiteElo "1965"]
[BlackElo "2266"]
[Annotator "NA RC"]
[PlyCount "62"]
[EventDate "2024.09.05"]
[EventType "team-tourn"]
[EventCountry "HUN"]
[SourceTitle "playchess.com"]
[Source "ChessBase"]
[SourceQuality "1"]
[WhiteTeam "San Marino"]
[BlackTeam "Mexico"]
[WhiteTeamCountry "SMR"]
[BlackTeamCountry "MEX"]
[TimeControl "40/5400+30:1800+30"]

1. e4 c5 2. Nf3 e6 3. d4 cxd4 4. Nxd4 Nf6 5. Bd3 Nc6 6. Nxc6 bxc6 7. c4 d5 8. cxd5 cxd5 9. exd5 Qxd5 10. f3 Bb4+ 11. Kf2 Bc5+ 12. Ke1 O-O 13. Nc3 Qd4 14. Rf1 Rd8 15. Bxh7+ Nxh7 16. Qxd4 Bxd4 17. Bd2 Ba6 18. Rh1 Rab8 19. b3 Rbc8 20. Rc1 Rc5 21. f4 Bf2+ 22. Kxf2 Rxd2+ 23. Ke1 Rxg2 24. h4 Nf6 25. a4 Ne4 26. Rc2 Rxc2 27. Nxe4 Rc1+ 28. Kf2 R5c2+ 29. Kg3 Rxh1 30. Nf2 Rg1+ 31. Kh2 Rg6 0-1

[Event "45th FIDE Olympiad 2024"]
[Site "Budapest"]
[Date "2024.09.11"]
[Round "1.209"]
[White "Asante, Debesai Zerabruk"]
[Black "Cori, Jorge"]
[Result "0-1"]
[ECO "B31"]
[WhiteElo "1908"]
[BlackElo "2609"]
[Annotator "TA"]
[PlyCount "94"]
[EventDate "2024.09.05"]
[EventType "team-tourn"]
[EventCountry "HUN"]
[SourceTitle "playchess.com"]
[Source "ChessBase"]
[SourceQuality "1"]
[WhiteTeam "Eritrea"]
[BlackTeam "Peru"]
[WhiteTeamCountry "ERI"]
[BlackTeamCountry "PER"]
[TimeControl "40/5400+30:1800+30"]

{[%evp 10,94,42,48,41,37,41,33,38,42,39,37,41,42,42,35,74,65,62,69,71,56,65,7,0,0,8,-5,-5,-39,-29,-26,-6,-41,-46,-47,-56,-39,-48,-139,-128,-128,-110,-199,-145,-144,-152,-153,-151,-168,-162,-164,-162,-156,-176,-165,-114,-94,-113,-90,-65,-70,-86,-76,-55,-93,-89,-112,-110,-138,-130,-254,-245,-320,-329,-468,-464,-405,-311,-493,-382,-685,-675,-685,-680,-664,-654]} 1. e4 c5 2. Nf3 Nc6 3. Bb5 g6 4. Bxc6 dxc6 5. d3 Bg4 6. Nbd2 Bg7 7. h3 Bxf3 8. Nxf3 Nf6 {White is slightly better.} 9. a4 O-O 10. O-O Nd7 11. Be3 b6 12. Qc1 Ne5 13. Nh2 e6 14. f4 Nd7 {[%cal Oc5c4]} 15. Nf3 Qe7 16. e5 (16. a5 $14) 16... f6 $11 17. exf6 Nxf6 18. Kh1 Nh5 {[#] ...Ng3+ would now be deadly.} 19. Rf2 Qd6 20. Nd2 Qd5 (20... Nxf4 $2 21. Nc4 Nxd3 22. cxd3 $18 (22. Nxd6 Nxc1 23. Rxc1 Bxb2 $18)) 21. Ne4 c4 22. Nc3 Bxc3 23. bxc3 cxd3 24. Rd2 (24. cxd3 $15 Qxd3 25. Kh2) 24... e5 $17 {Black has more active pieces.} ({Don't take} 24... Nxf4 25. Bxf4 Rxf4 26. Rxd3 $17) 25. Rxd3 Qe6 26. Qd2 (26. Qe1 $17) 26... Ng3+ ({And not} 26... Nxf4 27. Rd6 Qc4 28. Kh2 $11) ({Black should play} 26... exf4 $19 27. Bd4 f3) 27. Kg1 exf4 28. Bf2 {[#]} Ne4 $1 29. Re1 Rae8 30. Qd1 Qf5 31. Qf3 Re6 32. Rd4 Ng5 (32... Rfe8 $19 {...Ng5 is the strong threat.} 33. Red1 Kf7) 33. Qd3 Rxe1+ 34. Bxe1 f3 35. Qxf5 Rxf5 36. h4 fxg2 (36... Nf7 {simplifies} 37. gxf3 c5 38. Rd7 Ne5) 37. hxg5 {And now Bd2 would win.} Rf1+ 38. Kxg2 Rxe1 {[%mdl 4096] Endgame. KR-KR} 39. Rd8+ Kf7 40. Rd7+ (40. Kf3 $17 {was called for.}) 40... Re7 $19 41. Rd2 Ke6 42. Rf2 (42. c4 $142) 42... Kd5 43. Rf4 Re2+ 44. Kg1 (44. Kf1 $142 Re5 (44... Rxc2 $2 45. Rf7 $19) 45. Rd4+ Kc5 46. Rd7) 44... Re5 ({Weaker is} 44... Rxc2 45. Rf7 $19) 45. Rg4 $2 (45. c4+ Kc5 46. Rg4) 45... Re4 {Black is clearly winning.} 46. Rg3 Rxa4 47. Kf2 Ra2 {Weighted Error Value: White=0.31/Black=0.13 (very precise) .  Mistake:       	White=7     	Black=2      Inaccurate:     	White=4     	Black=1      OK:         	White=14    	Black=16     Best:        	White=2     	Black=4} 0-1

[Event "45th FIDE Olympiad 2024"]
[Site "Budapest"]
[Date "2024.09.11"]
[Round "1.210"]
[White "Flores Quillas, Diego Saul Rodri"]
[Black "Kibrom, Weldegebriel Beraki"]
[Result "1-0"]
[ECO "B07"]
[WhiteElo "2451"]
[BlackElo "1885"]
[Annotator "TA"]
[PlyCount "91"]
[EventDate "2024.09.05"]
[EventType "team-tourn"]
[EventCountry "HUN"]
[SourceTitle "playchess.com"]
[Source "ChessBase"]
[SourceQuality "1"]
[WhiteTeam "Peru"]
[BlackTeam "Eritrea"]
[WhiteTeamCountry "PER"]
[BlackTeamCountry "ERI"]
[TimeControl "40/5400+30:1800+30"]

{[%evp 11,91,58,54,18,27,24,30,11,20,-85,-58,-88,29,42,35,29,34,-37,-31,-43,-40,-50,-20,-18,-32,-27,-19,-27,-25,-35,0,-48,-58,-57,66,71,81,44,67,43,65,52,114,53,55,65,58,54,75,16,23,8,8,10,2,9,5,9,237,129,341,341,341,341,326,326,385,374,627,625,606,579,1057,966,1593,1531,1839,1807,1822,1333,1470,1390]} 1. e4 d6 2. d4 Nf6 3. Nc3 c6 4. Nf3 Bg4 {[%cal Bc8g4,Bg4h5,Bh5g6][%mdl 32]} 5. h3 Bh5 6. Bd3 e6 7. Bg5 Be7 8. g4 {[%cal Bg2g4,Bg4g5][%mdl 32]} Bg6 {[%cal Of6e4]} 9. Qe2 {White has an edge.} Nbd7 10. h4 (10. Qe3 $11 {keeps the balance.}) 10... h5 $1 $17 (10... Nxg4 $2 11. Bxe7 Qxe7 12. h5 $18) 11. Bxf6 Nxf6 (11... gxf6 $17 12. g5 fxg5 13. hxg5 Bxg5 14. Nxg5 Qxg5) 12. g5 $11 Nd7 13. O-O-O e5 14. dxe5 (14. Qe3 $14) 14... dxe5 $15 15. Qe1 Qc7 16. Bf1 Nc5 17. Bh3 O-O 18. Bf5 b5 19. Qe3 a5 20. Ne2 a4 21. Nd2 (21. Rd2 $11) 21... Ne6 22. Qh3 {Bxg6 is the strong threat.} Nf4 (22... Nd4 $15 23. Nxd4 exd4) 23. Nxf4 $14 exf4 24. Bxg6 fxg6 25. Qe6+ Kh7 {And now ...Bc5 would win.} 26. Nf3 Rad8 {Dodges Rd7} (26... Rae8 $1 $14) 27. Ne5 {White is more active.} (27. Rxd8 $1 $16 {Threatens to win with Rd7.} Rxd8 28. Ne5) 27... Rd6 28. Rxd6 Qxd6 29. Qxd6 Bxd6 30. Nxc6 {[%mdl 4096] Endgame. KRB-KRN} ({White should play} 30. Nd7 $16 Rd8 31. e5) 30... f3 $1 $11 31. Rh3 Rf4 32. Nd4 {[%csl LRb5,LRf3][%cal Oc1d2]} Bc5 33. Ne6 (33. Nxb5 $2 Bxf2 (33... Rxe4 34. Nc3 $11) 34. Rh1 Bxh4 $19 (34... Rxe4 $2 35. Kd2 $19)) (33. Rxf3 Rxe4 34. Nxb5 Rxh4 $15) 33... Be3+ 34. Kd1 $1 (34. fxe3 $2 f2 (34... Rxe4 $2 35. Nf8+ Kg8 36. Rxf3 $18) 35. Kd2 f1=Q $19 (35... f1=R $2 36. exf4 Kg8 37. b4 $18)) 34... Rxe4 (34... Rf7 $1 $11 35. Ke1 (35. fxe3 $2 f2 $17) 35... Ba7) 35. Rxf3 (35. fxe3 $18 Rxe6 36. Rxf3) 35... Rxe6 {This costs Black the game.} (35... Bd4 $16 36. Nf8+ Kg8) 36. Rxe3 {KR-KR} ({Don't take} 36. fxe3 Re4) 36... Rd6+ {[#]} 37. Rd3 $1 Rc6 38. Rd4 Rc5 39. b3 {[%cal Bb2b3,Bb3b4][%mdl 32]} a3 $2 (39... axb3 40. axb3 Rc3) 40. b4 $18 {White is clearly winning.} Rc3 {[#]} 41. Rf4 {Prevents Rf3.} Rh3 42. c4 Rh1+ 43. Kc2 bxc4 44. Rxc4 ({Stronger than} 44. b5 Ra1 $11) 44... Re1 45. Kb3 Re2 46. Kxa3 {Weighted Error Value: White=0.25 (precise) /Black=0.43.  Loses game:     	---       	Black=2      Mistake:       	White=6     	Black=4      Inaccurate:     	White=1     	Black=3      OK:         	White=12    	Black=13     Best:        	White=3     	Black=1      Strong:       	White=2     	Black=2} 1-0